Cogmind - Beta 16 @@@ ROGUE MODE // 2025.11.25 @ 04:31:45 Player: AngelSpirit Result: Destroyed by H-66 Slayer with Heavy Assault Rifle Performance ------------- Evolutions (4) 2000 Regions Visited (8) 1600 Robots Destroyed (117) 585 Value Destroyed (4753) 4753 Prototype IDs (8) 160 Alien Tech Used (0) 0 Bonus (2188) 2188 TOTAL SCORE: 11286 Bonus ------- High Alert Combat Kills 1185 Follower Combat Kills 220 Registered with UFD 300 Met Optimus in HQ 500 Friendly Fire -17 Cogmind --------- Core Integrity 0/850 Matter 231/300 Energy 80/300 System Corruption 4% Temperature Cool (3) Movement Flying (34) Location -6/Factory Parts ------- > --- POWER (2) -------- Angular Momentum Engine > --- PROPULSION (3) --- Nuclear Pulse Thruster Nuclear Pulse Thruster Nuclear Pulse Thruster > --- UTILITY (7) ------ Improved Trap Scanner Improved Signal Interpreter Hacking Suite Hacking Suite Makeshift System Shield > --- WEAPON (3) ------- (None) > --- INVENTORY (5) ---- Nuclear Pulse Thruster Matter Compressor (250) System Shield A0-MCA's Component Scanner Heavy Machine Gun Peak State ------------ > --- POWER ------------ Meta Core > --- PROPULSION ------- VSS Leg Improved Titanium Leg Flexi-carbon Leg Shield Leg > --- UTILITY ---------- Improved Cooling System Advanced Sensor Array Improved Signal Interpreter Damper Plating > --- WEAPON ----------- Subdweller Laser Overtuned Coil Gun Overtuned Railgun Proton Missile Launcher > --- INVENTORY -------- Aluminum Leg Hacking Suite Makeshift System Shield A0-MCA's Component Scanner CPS Tube [Rating: 90] Favorites ----------- Power Meta Core Engine Light Ion Engine Power Core Meta Core Reactor Cold Fusion Reactor Propulsion VSS Leg Treads Improved Medium Treads Leg VSS Leg Wheel Compact Wheel Hover Unit Backup Propulsion III Flight Unit Makeshift Flight Unit Utility Improved Signal Interpreter Device Sensor Array Storage Small Storage Unit Processor Improved Signal Interpreter Hackware Hacking Suite Protection Light Armor Plating Weapon Subdweller Laser Energy Gun Subdweller Laser Energy Cannon Subdweller Beam Cannon Ballistic Gun Overtuned Railgun Ballistic Cannon Gauss Cannon Launcher Proton Missile Launcher Slashing Weapon Chainsword Build | -11 -10 -10 -10 -8 -8 -6 -6 -6 ------- Run | Yrd Mat Min Sub Rec Scr Fac Was Fac Slots Evolved 8 | . . . . . . 8 . . Power 1 | . . . . . . 1 . . Propulsion 1 | . . . . . . 1 . . Utility 5 | . . . . . . 5 . . Weapon 1 | . . . . . . 1 . . Parts Attached 87 | 7 5 4 21 4 5 3 3 35 Power 13 | 2 . 2 3 . . . . 6 Engine 7 | 2 . 1 2 . . . . 2 Core 4 | . . 1 1 . . . . 2 Reactor 2 | . . . . . . . . 2 Propulsion 26 | 2 1 1 5 3 1 2 1 10 Treads 1 | . . . . . . 1 . . Leg 11 | . . . . 3 1 1 1 5 Wheel 8 | 2 1 1 4 . . . . . Hover 2 | . . . . . . . . 2 Flight 4 | . . . 1 . . . . 3 Utility 25 | 1 2 1 6 1 1 . 2 11 Device 8 | . 1 . 3 . . . 1 3 Storage 2 | 1 . . . . . . . 1 Processor 1 | . . . . . 1 . . . Hackware 3 | . . . . . . . . 3 Protection 11 | . 1 1 3 1 . . 1 4 Artifact . | . . . . . . . . . Weapon 23 | 2 2 . 7 . 3 1 . 8 Energy Gun 2 | 1 . . 1 . . . . . Energy Cannon 2 | . . . 2 . . . . . Ballistic Gun 10 | 1 1 . 4 . 1 1 . 2 Ballistic Cannon 6 | . 1 . . . 1 . . 4 Launcher 2 | . . . . . 1 . . 1 Special Weapon . | . . . . . . . . . Impact Weapon . | . . . . . . . . . Slashing Weapon 1 | . . . . . . . . 1 Piercing Weapon . | . . . . . . . . . Special Melee Weapon . | . . . . . . . . . Unidentified Prototypes 3 | . . . 1 . . . . 2 Parts Lost 35 | . 3 1 12 . . . . 19 Power 5 | . 1 1 2 . . . . 1 Propulsion 11 | . . . 5 . . . . 6 Utility 10 | . 1 . 3 . . . . 6 Weapon 9 | . 1 . 2 . . . . 6 Highest Loss Streak 5 | . 2 1 5 . . . . 4 To Critical Strikes 1 | . . . 1 . . . . . Average Backups 4 | . 5 7 5 4 4 4 4 4 Power . | . . . . . . . . . Propulsion . | . 3 2 . . . . . 1 Utility 2 | . . 4 3 3 3 3 3 2 Weapon . | . . 1 . 1 . . . 1 Tool/Special . | . . . . . . . . . Unused Backups 14 | . 1 1 3 1 1 . . 7 Power 1 | . . 1 . . . . . . Propulsion 2 | . 1 . . . . . . 1 Utility 7 | . . . 2 1 . . . 4 Weapon 3 | . . . 1 . 1 . . 1 Tool/Special 1 | . . . . . . . . 1 Average Slot Usage (%) 86 | . 91 99 78 74 95 61 70 87 Engine 2 | . 13 10 . . . . . 1 Core 7 | . . 3 11 11 11 5 5 6 Leg 16 | . . . . 16 32 19 23 20 Wheel 6 | . 28 28 15 . . . . . Flight 1 | . . . 2 7 . . . . Device 7 | . 2 . 3 11 11 5 8 9 Storage 3 | . 14 14 8 . . . . . Processor 4 | . . . . . 10 5 5 5 Hackware 4 | . . . . . . . . 14 Protection 5 | . 3 14 8 6 . . 2 4 Energy Gun 5 | . 5 . 5 11 11 5 5 1 Ballistic Gun 9 | . 17 14 11 11 8 11 11 6 Ballistic Cannon 5 | . 4 14 6 . 2 . . 6 Launcher 2 | . . . . . 7 5 5 2 Peak Build Rating 90 | 6 7 9 29 32 41 51 86 90 Average Rating 40 | 4 6 7 17 27 35 49 73 73 On Entrance 28 | . 6 7 9 23 29 41 51 86 Avg Prop Armor Cover (%) 4 | . . . . 1 . 7 . 17 Naked Turns . | . . . . . . . . . Heaviest Build 76 | 14 16 18 45 25 25 29 76 76 Greatest Support 77 | 32 32 32 30 39 42 62 77 77 Greatest Overweight (x) 14 | . . . 14 2 . . . 1 Average Overweight (x) . | . . . . . . . . . Largest Inventory Capacity 8 | 8 8 8 8 5 5 5 5 8 Average Capacity 5 | 7 8 8 7 5 5 5 5 5 Most Carried 8 | 1 8 8 8 5 5 4 5 7 Average Carried 5 | . 5 7 6 4 4 4 4 4 Final Capacity 8 | 8 8 8 5 5 5 5 5 5 Final Carried 8 | 1 8 8 5 5 5 4 5 5 Class Distribution -------------------- 38% | Mutant 15% | Commander-Skirmisher 11% | Commander-Mutant 10% | Hacker-Skirmisher 10% | Hacker-Mutant 5% | Skirmisher 3% | Hacker-Tank 3% | Subdweller-Tank Dominant Class ---------------- Mutant | -10/Materials Mutant | -10/Mines Mutant | -10/Subcaves Mutant | -8/Recycling Commander-Skirmisher | -8/Scraptown Commander-Skirmisher | -6/Factory Skirmisher | -6/Waste Hacker-Skirmisher | -6/Factory Resources | -11 -10 -10 -10 -8 -8 -6 -6 -6 ----------- Run | Yrd Mat Min Sub Rec Scr Fac Was Fac Matter Collected 3600 | 229 179 224 632 99 40 22 110 2065 Remotely . | . . . . . . . . . Salvage Created 4219 | . 322 177 548 303 . 76 287 2506 Parts 229 | . 26 25 39 11 . 10 6 112 Haulers Intercepted 2 | . 1 . . . . . . 1 Recyclers Shooed 1 | . . . . . . . . 1 Parts Field Recycled . | . . . . . . . . . Retrieved Matter . | . . . . . . . . . Parts Self-Destructed 9 | . . . 9 . . . . . Prevented . | . . . . . . . . . Parts Restored . | . . . . . . . . . Kills | -11 -10 -10 -10 -8 -8 -6 -6 -6 ------- Run | Yrd Mat Min Sub Rec Scr Fac Was Fac Combat Hostiles Destroyed 94 | . 7 13 17 6 . 2 1 48 Melee 7 | . . . . . . . . 7 Guns 38 | . 7 5 8 6 . . 1 11 Cannons 26 | . . 8 9 . . . . 9 AOE 21 | . . . . . . 2 . 19 Classes Destroyed 21 | . 4 1 2 4 . 1 1 8 Worker 6 | . . . . . . 1 . 5 Builder 2 | . . . . . . . . 2 Hauler 2 | . 1 . . . . . . 1 Recycler 1 | . . . . . . . . 1 Mechanic 2 | . . . . . . . . 2 Operator 2 | . . . . . . . . 2 Turret 2 | . . . 2 . . . . . Watcher 6 | . 3 . . . . . . 3 Swarmer 21 | . 2 12 3 . . 2 . 2 Grunt 26 | . 5 . . 1 . . . 20 Brawler 7 | . . . . 1 . . . 6 Duelist 4 | . . . . 1 . . . 3 Protector 1 | . . . . . . . . 1 Sentry 7 | . . 1 . 1 . . . 5 Demolisher 1 | . . . . 1 . . . . Hunter 5 | . . . . 1 . . . 4 Programmer 5 | . . . . . . . . 5 Heavy 1 | . . . . . . . . 1 Behemoth 1 | . . . . . . . . 1 Compactor 1 | . . . . . . . 1 . Subdweller 14 | . . . 14 . . . . . Best Kill Streak 6 | . 4 4 3 2 . 3 1 6 Combat Bots Only 4 | . 4 4 3 2 . 2 1 4 Max Kills in Single Turn 3 | . 1 1 1 1 . 2 1 3 Gunslinging . | . . . . . . . . . Exploded 3 | . . . . . . 1 . 3 Melee 1 | . . . . . . . . 1 Uniques/NPCs Destroyed . | . . . . . . . . . Combat | -11 -10 -10 -10 -8 -8 -6 -6 -6 -------- Run | Yrd Mat Min Sub Rec Scr Fac Was Fac Hostile Shots Fired 909 | . 26 45 144 17 . . 1 676 Missed 344 | . 6 17 60 4 . . . 257 Hits 565 | . 20 28 84 13 . . 1 419 Melee 8 | . . . . . . . 1 7 Projectile 557 | . 20 28 84 13 . . . 412 AOE 11 | . . . 7 4 . . . . Critical Strikes 22 | . 1 1 4 . . . . 16 Damage Taken 6675 | . 243 248 1531 297 . . 52 4304 Core 1104 | . 66 43 93 44 . . 52 806 Absorbed by Shields . | . . . . . . . . . Ignored by Resistances 1836 | . . . . 11 . . . 1825 Regen/Repaired (Parts) 177 | . . . . . 177 . . . Core Remaining (%) 50 | 100 . . . . 1 . . . Volleys Fired 330 | . 24 27 111 14 . 2 10 142 Largest 4 | . 2 2 3 2 . 1 4 4 Hottest 171 | . 60 50 170 90 . 39 171 171 Shots Fired 607 | . 45 54 203 27 . 2 22 254 Gun 305 | . 42 27 107 27 . . 20 82 Cannon 266 | . 3 27 96 . . . . 140 Launcher 36 | . . . . . . 2 2 32 Special . | . . . . . . . . . Kinetic 477 | . 35 54 146 14 . . 10 218 Thermal 84 | . . . 57 13 . . 10 4 Explosive 9 | . . . . . . . . 9 Electromagnetic 37 | . 10 . . . . 2 2 23 Robot Hit Streak 17 | . 16 6 17 8 . . 8 12 Robot Miss Streak 3 | . 3 3 3 3 . . 2 3 Penetration Max 1 | . . . . . . . . 1 Secondary Targets 2 | . . . 1 1 . . . . Max Gunslinging Chain 1 | . . . 1 1 . . . . Shots Hit Robots 360 | . 28 28 105 16 . . 16 167 Core Hits 206 | . 18 14 31 7 . 7 3 126 Critical Kills 3 | . . . 1 . . . 1 1 Critical Parts Destroyed 2 | . . . 1 1 . . . . Critical Strikes 22 | . 1 . 4 1 . . 2 14 Destroy 8 | . . . 4 1 . . 2 1 Blast 10 | . . . . . . . . 10 Corrupt 1 | . 1 . . . . . . . Sever 3 | . . . . . . . . 3 Melee Attacks 40 | . . . . . . . . 40 Impact . | . . . . . . . . . Slashing 40 | . . . . . . . . 40 Piercing . | . . . . . . . . . Sneak Attacks 1 | . . . . . . . . 1 Combat Hostiles . | . . . . . . . . . Follow-up Attacks . | . . . . . . . . . Damage Inflicted 13776 | . 434 421 2098 344 . 94 399 9986 Guns 3999 | . 365 161 1079 344 . . 397 1653 Cannons 3136 | . 15 260 1019 . . . . 1842 Explosions 5068 | . 54 . . . . 94 2 4918 Melee 1284 | . . . . . . . . 1284 Ramming 289 | . . . . . . . . 289 Kinetic 5800 | . 262 421 1191 175 . . 278 3473 Thermal 2855 | . . . 907 169 . . 119 1660 Explosive 2279 | . 54 . . . . . . 2225 Electromagnetic 1269 | . 118 . . . . 94 2 1055 Impact . | . . . . . . . . . Slashing 1284 | . . . . . . . . 1284 Piercing . | . . . . . . . . . Highest Corruption 4 | . . . . . . . . 4 Average Corruption 3 | . . . . . . . . 3 Corruption Purged . | . . . . . . . . . Corruption Blocked . | . . . . . . . . . Effects 58 | . . . . . . . . 58 Message Errors 6 | . . . . . . . . 6 Matter Fused 18 | . . . . . . . . 18 Heat Flow Errors 5 | . . . . . . . . 5 Energy Discharges 9 | . . . . . . . . 9 Data Loss (minor) 11 | . . . . . . . . 11 Data Loss (major) 1 | . . . . . . . . 1 Misfires 1 | . . . . . . . . 1 Alerts 3 | . . . . . . . . 3 Weapon Failures 4 | . . . . . . . . 4 Overload Shots . | . . . . . . . . . Overflow Damage 269 | . . . . . . . . 269 Projectiles 10 | . . . . . . . . 10 Explosions 219 | . . . . . . . . 219 Melee 40 | . . . . . . . . 40 Knockbacks 16 | . 1 . 10 . . . . 5 Impact . | . . . . . . . . . Kinetic 15 | . 1 . 10 . . . . 4 Secondary 1 | . . . . . . . . 1 Self-Inflicted Damage 501 | . . . . . . . . 501 Shots 15 | . . . . . . . . 15 Rammed . | . . . . . . . . . Targets Rammed 39 | . . . . . . . . 39 Kicked 39 | . . . . . . . . 39 Crushed . | . . . . . . . . . Highest Temperature 400 | . 27 32 96 400 . . 216 214 Average Temperature 82 | . 13 20 21 165 . . 127 68 Received Heat Transfer 1438 | . 126 36 315 54 . . . 907 Effects 3 | . . . . 3 . . . . Shutdowns 1 | . . . . 1 . . . . Interference 2 | . . . . 2 . . . . Siege Activations . | . . . . . . . . . Martial Activations . | . . . . . . . . . Shielding Activations . | . . . . . . . . . Robots Disrupted . | . . . . . . . . . Combat Hostiles . | . . . . . . . . . Robots Corrupted 2 | . . . . . . . . 2 Combat Hostiles 2 | . . . . . . . . 2 Parts Fried 4 | . . . . . . . . 4 Impact Corruptions . | . . . . . . . . . Robots Melted . | . . . . . . . . . Combat Hostiles . | . . . . . . . . . Parts Melted 1 | . . . 1 . . . . . Heat Transferred 2790 | . . . 1165 200 . . 150 1275 Parts Sabotaged . | . . . . . . . . . Parts Stolen . | . . . . . . . . . Parts Stripped . | . . . . . . . . . Power Chain Reactions 2 | . . . . . . 1 . 1 Alert | -11 -10 -10 -10 -8 -8 -6 -6 -6 ------- Run | Yrd Mat Min Sub Rec Scr Fac Was Fac Maximum Alert Level 4 | . . . . . . . . 4 Low Security (%) 56 | 100 100 100 . 100 . 100 100 16 Level 1 4 | . . . . . . . . 8 Level 2 14 | . . . . . . . . 28 Level 3 11 | . . . . . . . . 22 Level 4 12 | . . . . . . . . 24 Level 5 . | . . . . . . . . . High Security . | . . . . . . . . . Max Security . | . . . . . . . . . Peak Influence 1595 | . 80 120 . 95 . 98 30 1595 Initial 40 | . . . . 40 . . 30 . Average 385 | . 25 54 . 15 . 5 8 722 Influence Increases 3858 | . 259 357 220 187 . 98 1 2736 Destroy 0b10 Robot/C 1720 | . 140 280 100 140 . 60 . 1000 Destroy 0b10 Robot/NC 115 | . 20 . . 5 . 5 . 85 Destroy Leader 326 | . 38 40 . . . 10 . 238 Allied During Kill 47 | . . 2 . 3 . 18 . 24 Trap Triggered on 0b10 10 | . . . . . . . . 10 Successful Hack 111 | . 19 5 . 8 . . . 79 Disable Machine 600 | . 30 . . . . . . 570 Anti-Garrison Action 150 | . . . . . . . . 150 Destroy Structure 299 | . 12 . . 1 . 5 1 280 Lose Combat Pursuer 480 | . . 30 120 30 . . . 300 Influence Decreases 2265 | . 259 357 134 273 . 10 89 1143 Entered New Map 104 | . . . . 46 . . 58 . Time Decay 1573 | . 225 307 124 204 . 10 30 673 Lost Part 240 | . 30 10 10 . . . . 190 Lost Ally 194 | . . 40 . 23 . . 1 130 Purge Threat 154 | . 4 . . . . . . 150 Squads Dispatched 22 | . 1 . . . . . . 21 Investigation 7 | . . . . . . . . 7 Extermination 5 | . . . . . . . . 5 Reinforcement 3 | . 1 . . . . . . 2 Assault 6 | . . . . . . . . 6 Garrison 1 | . . . . . . . . 1 Intercept . | . . . . . . . . . Searches Triggered . | . . . . . . . . . Construction Impeded . | . . . . . . . . . Haulers Reinforced . | . . . . . . . . . Active Scanning Responses . | . . . . . . . . . Cargo Convoy Interrupts 1 | . . . . . . . . 1 Stealth | -11 -10 -10 -10 -8 -8 -6 -6 -6 --------- Run | Yrd Mat Min Sub Rec Scr Fac Was Fac Distress Signals 2 | . . . . . . . . 2 Communications Jammed . | . . . . . . . . . Distress Signals . | . . . . . . . . . Times Spotted 154 | . 10 16 25 9 . 1 6 87 Peak Tracking Total 7 | . 5 3 6 4 . 3 5 7 Tactical Retreats 21 | . . 1 5 1 . . . 14 Traps | -11 -10 -10 -10 -8 -8 -6 -6 -6 ------- Run | Yrd Mat Min Sub Rec Scr Fac Was Fac Traps Triggered 8 | . . . . . . 3 . 5 Indirectly 2 | . . . . . . 2 . . Trap Hack Attempts . | . . . . . . . . . Triggered . | . . . . . . . . . Disarmed . | . . . . . . . . . Reprogrammed 6 | . . . . . . . . 6 Reused 1 | . . . . . . . . 1 Traps Extracted . | . . . . . . . . . Installed 1 | . . . 1 . . . . . Triggered 1 | . . . . . . . . 1 Most Traps Carried 2 | . . . 2 . . . . . Machines | -11 -10 -10 -10 -8 -8 -6 -6 -6 ---------- Run | Yrd Mat Min Sub Rec Scr Fac Was Fac Machines Disabled 44 | . 2 1 2 . . . . 39 Max in Single Turn 7 | . 1 . 1 . . . . 7 Garrison Access 1 | . . . . . . . . 1 Machines Repaired . | . . . . . . . . . Machines Dismantled . | . . . . . . . . . Machines Sabotaged . | . . . . . . . . . Overloaded Fab Kills . | . . . . . . . . . Hacking | -11 -10 -10 -10 -8 -8 -6 -6 -6 --------- Run | Yrd Mat Min Sub Rec Scr Fac Was Fac Machines Accessed 40 | . 5 1 . 5 8 . . 21 Terminals 21 | . 5 1 . 3 . . . 12 Fabricators 1 | . . . . . . . . 1 Repair Stations 1 | . . . . . . . . 1 Recycling Units 8 | . . . . 2 . . . 6 Scanalyzers 1 | . . . . . . . . 1 Garrison Access . | . . . . . . . . . Total Hacks 144 | . 15 3 . 11 37 . . 78 Successful 93 | . 8 1 . 8 37 . . 39 Failed 51 | . 7 2 . 3 . . . 39 Catastrophic 9 | . . . . 1 . . . 8 Database Lockouts . | . . . . . . . . . Manual 55 | . 9 1 . 4 . . . 41 Terminals 80 | . 15 3 . 8 . . . 54 Fabricators 1 | . . . . . . . . 1 Repair Stations 1 | . . . . . . . . 1 Recycling Units 16 | . . . . 3 . . . 13 Scanalyzers 9 | . . . . . . . . 9 Garrison Access . | . . . . . . . . . Terminal Hacks 65 | . 8 1 . 3 37 . . 16 Record 38 | . . . . . 37 . . 1 Part Schematic 1 | . . . . 1 . . . . Robot Analysis 1 | . 1 . . . . . . . Prototype ID Bank 3 | . 2 . . 1 . . . . Branch Access Points 2 | . 1 . . . . . . 1 Terminal Index 1 | . . . . . . . . 1 Alert Level 1 | . . . . . . . . 1 Unreport Threat 2 | . 1 . . . . . . 1 Locate Traps 4 | . 2 . . . . . . 2 Reprogram Traps 1 | . . . . . . . . 1 Security Status 1 | . . . . . . . . 1 Recall Extermination 1 | . . . . . . . . 1 Recall Assault 1 | . . . . . . . . 1 Hauler Manifests 1 | . 1 . . . . . . . Registered Components 1 | . . . . . . . . 1 Zone Layout 6 | . . 1 . 1 . . . 4 Fabricator Hacks 1 | . . . . . . . . 1 Network Status 1 | . . . . . . . . 1 Repair Station Hacks . | . . . . . . . . . Recycling Unit Hacks 5 | . . . . 3 . . . 2 Report Inventory 4 | . . . . 2 . . . 2 Retrieve Components 1 | . . . . 1 . . . . Scanalyzer 8 | . . . . . . . . 8 Insert Component 1 | . . . . . . . . 1 Analyze 1 | . . . . . . . . 1 Retrieve Study 6 | . . . . . . . . 6 Garrison Access Hacks . | . . . . . . . . . Unauthorized Hacks 14 | . . . . 2 . . . 12 Terminals 9 | . . . . 2 . . . 7 Assimilate 1 | . . . . . . . . 1 Botnet 8 | . . . . 2 . . . 6 Fabricators . | . . . . . . . . . Repair Stations . | . . . . . . . . . Recycling Units 5 | . . . . . . . . 5 Fedlink 4 | . . . . . . . . 4 Scrapoids 1 | . . . . . . . . 1 Scanalyzers . | . . . . . . . . . Garrison Access . | . . . . . . . . . Data Cores Recovered 2 | . . . . . . . . 2 Used 1 | . . . . . . . . 1 Hacking Detections 25 | . 5 1 . 2 . . . 17 Full Trace Events 3 | . 1 . . 1 . . . 1 Feedback Events . | . . . . . . . . . Feedback Blocked . | . . . . . . . . . Robot Schematics Acquired . | . . . . . . . . . Robots Built . | . . . . . . . . . Authchips . | . . . . . . . . . Time . | . . . . . . . . . Total Robot Build Rating . | . . . . . . . . . Part Schematics Acquired 2 | . . . . 1 . . . 1 Parts Built . | . . . . . . . . . Authchips . | . . . . . . . . . Time . | . . . . . . . . . Total Part Build Rating . | . . . . . . . . . Part Studies Acquired 5 | . . . . . . . . 5 Parts Repaired . | . . . . . . . . . Time . | . . . . . . . . . Parts Recycled . | . . . . . . . . . Recycled Matter . | . . . . . . . . . Retrieved Matter . | . . . . . . . . . Retrieved Components 2 | . . . . 2 . . . . Parts Scanalyzed 1 | . . . . . . . . 1 Part Schematics Acquired 1 | . . . . . . . . 1 Parts Damaged . | . . . . . . . . . Bothacking | -11 -10 -10 -10 -8 -8 -6 -6 -6 ------------ Run | Yrd Mat Min Sub Rec Scr Fac Was Fac Used RIF Installer . | . . . . . . . . . Robots Hacked . | . . . . . . . . . Non-combat . | . . . . . . . . . Combat . | . . . . . . . . . Robot Hacks Applied . | . . . . . . . . . Relay Couplers Released 2 | . . . . . . . . 2 Machine Destruction 2 | . . . . . . . . 2 Fabnet Peak Effective % . | . . . . . . . . . Robots Rewired 13 | . . . . 13 . . . . Allies Hacked . | . . . . . . . . . Hacks Repelled . | . . . . . . . . . Allies | -11 -10 -10 -10 -8 -8 -6 -6 -6 -------- Run | Yrd Mat Min Sub Rec Scr Fac Was Fac Total Allies 22 | . . 3 . 13 . . . 6 Largest Group 7 | . . 3 1 7 6 6 3 5 Highest-Rated Group 148 | . . 40 16 148 101 101 55 140 Highest-Rated Ally 28 | . . 16 16 27 27 27 27 28 Total Orders 3 | . . . . 3 . . . . ROAM 1 | . . . . 1 . . . . FOLLOW 2 | . . . . 2 . . . . Ally Attacks 49 | . . 6 4 13 . 2 . 24 Total Damage 832 | . . 79 . 249 . 55 . 449 Kills 7 | . . 1 . 2 . 1 . 3 Allies Corrupted . | . . . . . . . . . Allies Melted . | . . . . . . . . . Intel | -11 -10 -10 -10 -8 -8 -6 -6 -6 ------- Run | Yrd Mat Min Sub Rec Scr Fac Was Fac Active Infowar (turns) 6458 | . 124 . 375 1382 2022 182 146 2227 Sensors 6422 | . 124 . 375 1382 2022 182 146 2191 Traps 36 | . . . . . . . . 36 Robot Analysis Total 1 | . 1 . . . . . . . Derelict Logs Recovered 5 | . . 2 1 . 2 . . . Drone Launches . | . . . . . . . . . Drone Recoveries . | . . . . . . . . . Exploration | -11 -10 -10 -10 -8 -8 -6 -6 -6 ------------- Run | Yrd Mat Min Sub Rec Scr Fac Was Fac Turns Passed 10330 | 37 694 776 1620 1398 2022 182 146 3455 Spaces Moved 7582 | 28 587 580 1042 849 1751 152 96 2497 Core 242 | 1 . . 1 . . . . 240 Treads . | . . . . . . . . . Legs 4680 | . . . . 484 1751 152 96 2197 Wheels 1987 | 27 587 580 793 . . . . . Hover 2 | . . . . . . . . 2 Flight 671 | . . . 248 365 . . . 58 Fastest Speed 34 | 50 100 90 80 110 113 113 115 34 Average Speed 111 | 98 100 95 114 128 113 113 119 108 Slowest Speed 750 | 100 100 100 750 235 113 115 120 185 Overloaded Moves . | . . . . . . . . . Propulsion Burnouts . | . . . . . . . . . Robots Hopped 1 | . . . . . . . . 1 Potential Cave-ins 4 | . . . 4 . . . . . Cave-ins Triggered . | . . . . . . . . . Exploration Rate (%) 58 | 3 77 96 41 81 89 6 75 61 Regions Visited 8 Branch Regions 4 Pre-discovered Areas 3 | . . . . . 2 . . 1 Known Exits Taken 2 | . 1 . . . 1 . . . Unknown Exits Taken 4 | 1 . 1 1 1 . . . . Scrap Searched 14 | . . 2 8 . 4 . . . Spaces Dug 20 | . . . 3 . . . . 17 Terrain Destroyed 342 | . 11 . 4 1 . 4 1 321 Melee 1 | . . . . . . . . 1 Projectile 77 | . . . 4 1 . . 1 71 AOE 264 | . 11 . . . . 4 . 249 Terrain Rammed . | . . . . . . . . . Walls Destroyed . | . . . . . . . . . Machines Disabled . | . . . . . . . . . Actions | -11 -10 -10 -10 -8 -8 -6 -6 -6 --------- Run | Yrd Mat Min Sub Rec Scr Fac Was Fac Total 8856 | 34 649 750 1267 1130 1796 159 111 2960 Wait 536 | . 20 134 44 159 29 1 2 147 Move 7573 | 27 586 579 1041 848 1750 152 95 2495 Hop 1 | . . . . . . . . 1 Pick Up 49 | . 10 2 15 2 6 . . 14 Fast Attach 66 | 6 4 2 12 4 3 2 3 30 Attach 26 | . 1 . 12 1 2 1 . 9 Detach 4 | . . . 1 . . . 1 2 Swap 15 | 1 1 2 4 . . . . 7 Drop 67 | . 3 4 21 3 6 1 . 29 Fire 330 | . 24 27 111 14 . 2 10 142 Melee 40 | . . . . . . . . 40 Ram . | . . . . . . . . . Kick 39 | . . . . . . . . 39 Crush . | . . . . . . . . . Escape Stasis 5 | . . . . . . . . 5 Rewire 99 | . . . . 99 . . . . Trap 1 | . . . 1 . . . . . Miscellaneous 5 | . . . 5 . . . . . Route ------- -11/Scrapyard -10/Materials (discovered 4 exits: [*Mat x2] / *Min / [*Sub]) -10/Mines (discovered 3 exits: [*Mat x2] / [*Sub]) -10/Subcaves -8/Recycling (discovered 2 exits: Fac / *Scr) -8/Scraptown (discovered 2 exits: *Fac x2) -6/Factory -6/Waste -6/Factory (discovered 3 exits: *Fac / *Low x2) History --------- Turn | Location | Event 22 | -11/Scrapyard | Discovered new exit (range 14) 38 | -11/Scrapyard | Entered Materials 116 | -10/Materials | Identified exit to Mines 187 | -10/Materials | Discovered new exit (range 15) 306 | -10/Materials | Build established: Mutant 518 | -10/Materials | Discovered new exit (range 9) 527 | -10/Materials | Discovered new exit (range 9) 732 | -10/Materials | Entered Mines 982 | -10/Mines | Discovered new exit (range 4) 995 | -10/Mines | Learned Materials security intel 1167 | -10/Mines | Discovered new exit (range 12) 1228 | -10/Mines | Learned Materials emergency access door positions 1267 | -10/Mines | Discovered new exit (range 10) 1281 | -10/Mines | Assisted by bots powering up and referring to "LRC-V3" 1508 | -10/Mines | Entered Subcaves 1508 | -10/Subcaves | Accompanied by 1 ally 1509 | -10/Subcaves | Approached by a straggling Scientist 1524 | -10/Subcaves | Ambushed by Subdwellers from Twisted Machinery 2100 | -10/Subcaves | A swath of the cavern ceiling suddenly collapsed 2108 | -10/Subcaves | Core integrity fell below 50% 2225 | -10/Subcaves | A Subdweller sparked back to life 2225 | -10/Subcaves | A Subdweller sparked back to life 2264 | -10/Subcaves | Lost 4 parts (1p1n1u1w) 2322 | -10/Subcaves | Found Prototype Power Core 2322 | -10/Subcaves | Identified Meta Core 2324 | -10/Subcaves | Attached Meta Core, gained temporary slots: Propulsion, Utility, Weapon 2332 | -10/Subcaves | Lost 5 parts (1p2n1u1w) 2443 | -10/Subcaves | Disturbed a concealed Subdweller 2451 | -10/Subcaves | Disturbed a concealed Subdweller 2837 | -10/Subcaves | Discovered new exit (range 14) 2838 | -10/Subcaves | Core integrity fell below 20% 3128 | -10/Subcaves | Entered Recycling 3335 | -8/Recycling | Discovered new exit (range 15) 4297 | -8/Recycling | Lost 7 allies 4447 | -8/Recycling | Scanned before Scraplab entrance 4473 | -8/Recycling | Entered Scraplab 4483 | -8/Recycling | Discovered new exit (range 3) 4526 | -8/Recycling | Entered Scraptown 4526 | -8/Scraptown | Accompanied by 6 allies 4567 | -8/Scraptown | Heard Great Nut preacher, LISTEN AND RECITE! 4619 | -8/Scraptown | Build established: Commander-Mutant 4787 | -8/Scraptown | Scanned Subdweller tech in exchange for log data 4790 | -8/Scraptown | Learned location of Armory (-3) 4792 | -8/Scraptown | Learned Factory security intel 4808 | -8/Scraptown | Discovered new exit (range 11) 4888 | -8/Scraptown | Visited CR-KLE's Repair Center 4905 | -8/Scraptown | Visited Shadow of the Wyrm 4911 | -8/Scraptown | Visited Artisan Demo Area 4995 | -8/Scraptown | Visited Cyclists 5072 | -8/Scraptown | Visited Awakened 5092 | -8/Scraptown | Visited Assassins FH 5145 | -8/Scraptown | Received an X-ray algorithm 5330 | -8/Scraptown | Visited SPCMW 5364 | -8/Scraptown | Visited UFD Registry 5365 | -8/Scraptown | Registered with UFD as "Electronuts" 5425 | -8/Scraptown | Entered Cyclist Reading Room 5488 | -8/Scraptown | Build established: Commander-Skirmisher 5495 | -8/Scraptown | Visited Research Penetration Think Tank 5520 | -8/Scraptown | Visited A0-MCA Data Center 5527 | -8/Scraptown | Given a B rating by A0-MCA 5529 | -8/Scraptown | Found A0-MCA's Component Scanner 5551 | -8/Scraptown | Visited Chapter 10 5584 | -8/Scraptown | Visited Junk Repository 5607 | -8/Scraptown | Visited Scrap Suit Storage 5638 | -8/Scraptown | Visited Observation Area 5669 | -8/Scraptown | Visited Modified Component R&D 5753 | -8/Scraptown | Visited Scrapoid Pod Storage 5821 | -8/Scraptown | Delivered Scrap Shield to a Scientist 5966 | -8/Scraptown | Visited Abandonware Association 5982 | -8/Scraptown | Learned abandonware demo "HACKBUD.EXE" 5982 | -8/Scraptown | Learned abandonware demo "SHUTEYE.EXE" 6010 | -8/Scraptown | Visited LU-1G1's Boring Crew 6300 | -8/Scraptown | CR-KLE repaired 4 parts 6443 | -8/Scraptown | Met Optimus 6443 | -8/Scraptown | Accepted into 0bPrime 6515 | -8/Scraptown | Discovered new exit (range 3) 6516 | -8/Scraptown | Identified exit to Factory 6548 | -8/Scraptown | Entered Factory 6548 | -6/Factory | Accompanied by 6 allies 6548 | -6/Factory | Evolved 8 slots: Power x1, Propulsion x1, Utility x5, Weapon x1 6730 | -6/Factory | Sucked down chute 6730 | -6/Factory | Entered Waste 6746 | -6/Waste | Spotted C-40 Crusher 6779 | -6/Waste | Destroyed C-40 Crusher 6781 | -6/Waste | Spotted C-40 Crusher 6793 | -6/Waste | Found Damper Plating 6819 | -6/Waste | Spotted C-40 Crusher 6820 | -6/Waste | Spotted C-40 Crusher 6826 | -6/Waste | Spotted C-40 Crusher 6826 | -6/Waste | Spotted C-40 Crusher 6858 | -6/Waste | Discovered new exit (range 16) 6875 | -6/Waste | Identified exit to Factory 6876 | -6/Waste | Entered Factory 6896 | -6/Factory | 6 allies followed down the chute 7124 | -6/Factory | Build established: Skirmisher 7637 | -6/Factory | Build established: Mutant 7637 | -6/Factory | Discovered new exit (range 15) 7656 | -6/Factory | Identified exit to Lower Caves 7703 | -6/Factory | Loaded intel: 8 recycling unit locations 7790 | -6/Factory | Scrapoid reinforcements arrived 7863 | -6/Factory | Lost 4 allies 8085 | -6/Factory | Build established: Hacker-Skirmisher 8193 | -6/Factory | Discovered new exit (range 15) 8228 | -6/Factory | Identified exit to Factory 8276 | -6/Factory | First assault squad dispatched 8722 | -6/Factory | Spotted B-75 Beast 8747 | -6/Factory | Cargo convoy interrupted 8785 | -6/Factory | Destroyed B-75 Beast 8957 | -6/Factory | Learned location of Protoforge (-3) 9606 | -6/Factory | Build established: Hacker-Mutant 9644 | -6/Factory | Lost 4 parts (1p1n2w) 9710 | -6/Factory | Core integrity fell below 50% 10143 | -6/Factory | Garrison activated, responded to threat 10165 | -6/Factory | Core integrity fell below 20% 10189 | -6/Factory | Lost 4 parts (3n1u) 10331 | -6/Factory | Destroyed by H-66 Slayer with Heavy Assault Rifle Last Messages --------------- 10295_ Acquired Imp. Trap Scanner. 10301_ Acquired Backup Propulsion III. 10310_ Dropped Flexi-carbon Leg. 10314_ System corrupted: Matter fused (-9). 10315_ Acquired Angular Momentum Engine. 10319_ Acquired 10 matter. 10320_ R-10 Processor collects Flexi-carbon Leg. 10322_ K-01 Serf cleans the Power Conduit. 10323_ Dropped Backup Propulsion III. 10323_ Acquired Nuclear Pulse Thruster. 10325_ Dropped Backup Propulsion III. 10325_ K-01 Serf cleans the Power Conduit. 10326_ Acquired Nuclear Pulse Thruster. 10328_ K-01 Serf cleans the Power Conduit. 10328_ Acquired Nuclear Pulse Thruster. 10329_ K-01 Serf cleans the Power Conduit. 10331_ R-10 Processor collects Backup Propulsion III. 10331_ Terminal disabled. 10331_ Penetrated by Slug. Map ----- +----------------------------------------------------+ | ????# # ! #" # #??# | | ????#######+#########+#### #####??# | | ???????# ##############??# | | ???????# #?????? #??# | | ######## #?????? #??# | | ## #?????? #??# | | *## +?????? #??? | | #"= #?????? #??? | | + #?????? #??? | | #################### #?????? #??? | | " " #?################## % #?????? #??? | | "Y" #?# T # #?????? #?## | | """ #?# # #?????? #?# | | #"#####?# ! # #?????? #?# | | #????# # #???????????????? | | ###### """"""" + #???????????????? | | + """"""" # #???????????????? | | ###### """"""" # #???????????????? | | #????# """"""" # ^^^ #???????????????? | | #????# # ##########??????? | | #????################## % #??????? | | ????? #??????? | | ???? T" ???????? | | ?? k " " " " ????????? | | ? " " " "??????????? | | h @ " " " "???#??????? | | ########??############+### " " " "?? #??????? | | ???????????????????? # " "k" "? #??????? | | ?????????????????? # " " " " #####??? | | ???????????????? """" # k " " " " ?? | | ???????????????# """" # !! " " " " ?? | | ???????????????# """" # !! =" " " " ? | | ???????????????# """" # ! R k ? | | ???????????????# = # R ?? | | ???????????????# ????? # ?? | | ????????????############## ????? | | ???????????## # ###?????? | | ???????????## # #???????? | | #########?### # % % #???????? | | !#?# # # #???????? | | #?# # # #???????? | | #?###% =+ #???????? | | "" """" #?# # [ # ## ### #???????? | | "" """" #?### [[ # ## #???#???????? | | "" """" #?# #[ # #####???????????? | | "" """" #?### #######+#####???????????? | | "" """" #??## # # ]* #???????????? | | "" """" #???# ! % ### #???????????? | | ""!"""" #???##+###########?# ! ** #???????????? | | ==* #????# #?# # ###???# #???????????? | +----------------------------------------------------+ Best States ------------- Heat Dissipation 64 Coolant Potential 50 Energy Generation 33 Energy Capacity 380 Matter Stores 300 Matter Capacity 300 Sight Range 16 Robot Scan Range 16 Terrain Scan Density 10 Armor Coverage 1600 Resistance: KI 20 Resistance: EM 90 Phase Shifting 5 Evasion (%) 62 Offensive Hacking 20 Defensive Hacking 11 Item Schematics ----------------- Imp. Light Armor Plating | -8/Recycling | Hacked Shield Leg | -6/Factory | Scanalyzed Robot Schematics ------------------ None Fabricated ------------ Nothing Repaired ---------- Nothing Studied --------- Imp. Titanium Leg | -6/Factory | Hacked Arm. Leg | -6/Factory | Hacked Gauss Cannon | -6/Factory | Hacked Proton Missile Launcher | -6/Factory | Hacked Chainsword | -6/Factory | Hacked Alien Tech Used ----------------- None Achievements -------------- None Challenges ------------ None Game ------ Seed GravmagDeuteriumChainsword Manual? 0 Play Time 01:47:36 Cumulative 121.5 hours Start 2025.11.25 @ 02:44:44 End 2025.11.25 @ 04:31:45 Sessions 1 Manual Loads 0 Difficulty Rogue Special Mode None Game No. 62 Rogue 62 Adventurer 0 Explorer 0 Win Type - Total 1 Types 1/0/0/0/0/0/0/0/0/0 Lore% 59 Gallery% 58 Achievement% 44 Wizard Run 0 Options --------- Layout 1 ASCII 0 Keyboard 0 Movement Mouse Keybinds 0 Fullscreen 2 Font 32/SmallcapsGlow Map View 50x35 Zoom Use 0% Tactical HUD 1 Map Filters NONE Filters NONE Steam 1 RUN: 6385d787-d62d-41ec-a73f-41bf43ec562c